[Event "22nd Ruzomberok Open 2019"]
[Site "Ruzomberok"]
[Date "2019.07.01"]
[Round "3.23"]
[White "Taragelova, Martina"]
[Black "Profant, Jan"]
[Result "1-0"]
[ECO "B35"]
[WhiteElo "1719"]
[BlackElo "1871"]
[Annotator "NA"]
[PlyCount "71"]
[EventDate "2019.06.29"]
[EventType "swiss"]
[EventCountry "SVK"]
[SourceTitle "playchess.com"]
[Source "ChessBase"]
[SourceQuality "1"]
[TimeControl "40/5400+30:1800+30"]

1. e4 {[%emt 0:00:00]} c5 {[%emt 0:00:00]} 2. Nf3 {[%emt 0:00:00]} g6 {[%emt 0:00:00]} 3. d4 {[%emt 0:00:20]} cxd4 {[%emt 0:00:00]} 4. Nxd4 {[%emt 0:01:47]} Nc6 {[%emt 0:00:29]} 5. Nc3 {[%emt 0:00:37]} Bg7 {[%emt 0:00:11]} 6. Be3 {[%emt 0:00:21]} Nf6 {[%emt 0:00:12]} 7. Bc4 {[%emt 0:05:44]} O-O {[%emt 0:02:27]} 8. Bb3 {[%emt 0:01:01]} Na5 {[%emt 0:03:29]} 9. f3 {[%emt 0:04:03]} Nxb3 {[%emt 0:00:06]} 10. axb3 {[%emt 0:00:11]} a6 {[%emt 0:03:45]} 11. Qd2 {[%emt 0:01:54]} b5 {[%emt 0:00:41]} 12. Ndxb5 {[%emt 0:01:59]} Bb7 {[%emt 0:00:42]} 13. Nd4 {[%emt 0:01:08]} e5 {[%emt 0:00:55]} 14. Nde2 {[%emt 0:01:21]} d5 {[%emt 0:00:10]} 15. exd5 {[%emt 0:00:41]} Nxd5 {[%emt 0:00:13]} 16. Nxd5 {[%emt 0:02:24]} Bxd5 {[%emt 0:00:52]} 17. O-O-O {[%emt 0:03:01]} Be6 {[%emt 0:00:21]} 18. Qxd8 {[%emt 0:02:33]} Rfxd8 {[%emt 0:00:03]} 19. Nc3 {[%emt 0:05:09]} Rdc8 {[%emt 0:00:32]} 20. Rd2 {[%emt 0:02:45]} a5 {[%emt 0:07:19]} 21. Kb1 {[%emt 0:06:44]} f5 {[%emt 0:01:18]} 22. Rhd1 {[%emt 0:03:25]} Kf7 {[%emt 0:01:33]} 23. Na4 {[%emt 0:11:01]} f4 {[%emt 0:03:41]} 24. Bf2 {[%emt 0:03:14]} Rab8 {[%emt 0:07:28]} 25. Nc5 {[%emt 0:02:06]} Bf5 {[%emt 0:00:15]} 26. Ne4 {[%emt 0:02:13]} Bxe4 {[%emt 0:07:33]} 27. Rd7+ {[%emt 0:03:05]} Kg8 {[%emt 0:01:45]} 28. fxe4 {[%emt 0:00:11]} Rb4 {[%emt 0:00:21]} 29. Rd8+ {[%emt 0:12:30]} Rxd8 {[%emt 0:00:12]} 30. Rxd8+ {[%emt 0:00:06]} Kf7 {[%emt 0:00:11]} 31. c4 {[%emt 0:02:32]} a4 {[%emt 0:00:24]} 32. bxa4 {[%emt 0:03:41]} Rxc4 {[%emt 0:00:26]} 33. a5 {[%emt 0:00:26]} Ra4 {[%emt 0:01:01]} 34. Bb6 {[%emt 0:02:05]} Bf8 {[%emt 0:00:10]} 35. b3 {[%emt 0:03:32]} Ra3 {[%emt 0:09:47]} 36. Rxf8+ {[%emt 0:00:34]} 1-0

[Event "22nd Ruzomberok Open 2019"]
[Site "Ruzomberok"]
[Date "2019.07.01"]
[Round "3.24"]
[White "Zahradnik, Vladimir"]
[Black "Konkol, Emil"]
[Result "1-0"]
[ECO "A36"]
[WhiteElo "1862"]
[BlackElo "1714"]
[Annotator "NA"]
[PlyCount "61"]
[EventDate "2019.06.29"]
[EventType "swiss"]
[EventCountry "SVK"]
[SourceTitle "playchess.com"]
[Source "ChessBase"]
[SourceQuality "1"]
[TimeControl "40/5400+30:1800+30"]

1. c4 {[%emt 0:00:00]} c5 {[%emt 0:00:00]} 2. Nc3 {[%emt 0:00:00]} Nc6 {[%emt 0:00:00]} 3. g3 {[%emt 0:00:12]} Nf6 {[%emt 0:01:49]} 4. Bg2 {[%emt 0:00:07]} e6 {[%emt 0:00:43]} 5. e3 {[%emt 0:01:46]} d5 {[%emt 0:00:40]} 6. cxd5 {[%emt 0:00:11]} Nxd5 {[%emt 0:00:30]} 7. Nge2 {[%emt 0:02:10]} Be7 {[%emt 0:03:28]} 8. O-O {[%emt 0:00:17]} O-O {[%emt 0:00:04]} 9. Nxd5 {[%emt 0:02:25]} exd5 {[%emt 0:00:24]} 10. d4 {[%emt 0:00:03]} cxd4 {[%emt 0:02:40]} 11. Nxd4 {[%emt 0:01:20]} Bf6 {[%emt 0:00:25]} 12. Nxc6 {[%emt 0:01:29]} bxc6 {[%emt 0:00:15]} 13. Qc2 {[%emt 0:01:20]} Bd7 {[%emt 0:00:28]} 14. Bd2 {[%emt 0:00:50]} Rb8 {[%emt 0:00:48]} 15. Bc3 {[%emt 0:00:21]} Bxc3 {[%emt 0:00:32]} 16. bxc3 {[%emt 0:00:59]} Qf6 {[%emt 0:01:13]} 17. e4 {[%emt 0:01:23]} dxe4 {[%emt 0:03:46]} 18. Bxe4 {[%emt 0:00:10]} c5 {[%emt 0:01:12]} 19. Bxh7+ {[%emt 0:01:00]} Kh8 {[%emt 0:00:15]} 20. Be4 {[%emt 0:00:06]} Bc6 {[%emt 0:00:07]} 21. Rfe1 {[%emt 0:03:08]} Rfe8 {[%emt 0:00:58]} 22. Bxc6 {[%emt 0:03:51]} Rxe1+ {[%emt 0:00:28]} 23. Rxe1 {[%emt 0:00:11]} Qxc6 {[%emt 0:00:07]} 24. Qf5 {[%emt 0:05:07]} f6 {[%emt 0:08:46]} 25. Qg6 {[%emt 0:00:57]} Rd8 {[%emt 0:01:38]} 26. Qh5+ {[%emt 0:04:37]} Kg8 {[%emt 0:00:09]} 27. c4 {[%emt 0:01:28]} a6 {[%emt 0:03:29]} 28. Re7 {[%emt 0:01:08]} Qd6 {[%emt 0:01:09]} 29. Re1 Qc6 30. h4 Rb8 31. g4 1-0

[Event "22nd Ruzomberok Open 2019"]
[Site "Ruzomberok"]
[Date "2019.07.01"]
[Round "3.25"]
[White "Marsina, Stefan"]
[Black "Verba, Vladimir"]
[Result "1-0"]
[ECO "A43"]
[WhiteElo "1857"]
[BlackElo "1708"]
[Annotator "NA"]
[PlyCount "129"]
[EventDate "2019.06.29"]
[EventType "swiss"]
[EventCountry "SVK"]
[SourceTitle "playchess.com"]
[Source "ChessBase"]
[SourceQuality "1"]
[TimeControl "40/5400+30:1800+30"]

1. d4 {[%emt 0:00:00]} c5 {[%emt 0:00:21]} 2. c3 {[%emt 0:02:54]} b6 {[%emt 0:03:24]} 3. Bf4 {[%emt 0:03:51]} Nf6 {[%emt 0:01:36]} 4. e3 {[%emt 0:01:16]} Bb7 {[%emt 0:03:56]} 5. h3 {[%emt 0:10:46]} g6 {[%emt 0:01:35]} 6. Nf3 {[%emt 0:02:23]} Bg7 {[%emt 0:02:17]} 7. Be2 {[%emt 0:04:21]} d6 {[%emt 0:00:40]} 8. O-O {[%emt 0:03:46]} Nbd7 {[%emt 0:00:46]} 9. Nbd2 {[%emt 0:04:13]} O-O {[%emt 0:02:23]} 10. a4 {[%emt 0:02:52]} a6 {[%emt 0:03:31]} 11. Qb3 {[%emt 0:09:24]} h6 {[%emt 0:15:31]} 12. Bd3 {[%emt 0:06:16]} d5 {[%emt 0:09:57]} 13. c4 {[%emt 0:03:46]} e6 {[%emt 0:17:04]} 14. Rfd1 {[%emt 0:11:00]} Qe7 {[%emt 0:06:28]} 15. Ne5 {[%emt 0:12:24]} Nxe5 {[%emt 0:07:24]} 16. Bxe5 {[%emt 0:00:43]} Nd7 {[%emt 0:00:21]} 17. Bxg7 {[%emt 0:00:32]} Kxg7 {[%emt 0:00:10]} 18. dxc5 {[%emt 0:07:21]} Nxc5 {[%emt 0:01:47]} 19. Qc3+ {[%emt 0:00:52]} Kg8 {[%emt 0:05:14]} 20. Be2 {[%emt 0:01:05]} Qg5 {[%emt 0:03:41]} 21. Nf3 {[%emt 0:00:02]} Qe7 {[%emt 0:01:26]} 22. Qe5 {[%emt 0:01:29]} f6 {[%emt 0:01:38]} 23. Qf4 {[%emt 0:00:39]} g5 {[%emt 0:01:02]} 24. Qd4 {[%emt 0:01:06]} Nb3 {[%emt 0:00:37]} 25. Qxb6 {[%emt 0:00:45]} Nxa1 {[%emt 0:00:24]} 26. Rxa1 {[%emt 0:01:00]} Rfb8 {[%emt 0:00:50]} 27. Nd4 {[%emt 0:01:05]} Bc8 {[%emt 0:02:26]} 28. Qc6 {[%emt 0:01:37]} Ra7 {[%emt 0:02:36]} 29. cxd5 {[%emt 0:00:24]} exd5 {[%emt 0:01:33]} 30. Qxd5+ {[%emt 0:00:47]} Qf7 {[%emt 0:00:44]} 31. Qd8+ {[%emt 0:00:36]} Qf8 {[%emt 0:01:18]} 32. Bc4+ {[%emt 0:02:32]} Kg7 {[%emt 0:00:26]} 33. Qxf8+ {[%emt 0:00:16]} Kxf8 {[%emt 0:00:13]} 34. Nc6 {[%emt 0:00:02]} Rbb7 {[%emt 0:00:50]} 35. Nxa7 {[%emt 0:00:22]} Rxa7 {[%emt 0:00:07]} 36. Rd1 {[%emt 0:00:44]} Ke7 {[%emt 0:00:43]} 37. Kf1 {[%emt 0:00:35]} Rc7 {[%emt 0:00:51]} 38. b3 {[%emt 0:00:19]} Bb7 {[%emt 0:01:11]} 39. Rd4 {[%emt 0:00:19]} f5 {[%emt 0:00:51]} 40. f3 {[%emt 0:02:43]} a5 {[%emt 0:00:56]} 41. Ke2 {[%emt 0:31:06]} Rc5 {[%emt 0:30:59]} 42. e4 {[%emt 0:00:00]} h5 {[%emt 0:00:00]} 43. Kd3 {[%emt 0:00:00]} h4 {[%emt 0:00:00]} 44. Bb5 {[%emt 0:00:00]} Kf6 {[%emt 0:00:00]} 45. exf5 {[%emt 0:00:00]} Bc8 {[%emt 0:00:00]} 46. Bd7 {[%emt 0:00:00]} Bxd7 {[%emt 0:00:00]} 47. Rxd7 {[%emt 0:00:00]} Kxf5 {[%emt 0:00:00]} 48. Rf7+ {[%emt 0:00:25]} Ke5 {[%emt 0:00:00]} 49. Rb7 {[%emt 0:00:49]} Kd5 {[%emt 0:00:00]} 50. Rb6 {[%emt 0:00:46]} Ke5 {[%emt 0:00:00]} 51. Rb5 {[%emt 0:00:43]} Rxb5 {[%emt 0:00:00]} 52. axb5 {[%emt 0:00:02]} Kd5 {[%emt 0:00:00]} 53. b6 {[%emt 0:03:32]} Kc6 {[%emt 0:00:00]} 54. b7 {[%emt 0:00:40]} Kxb7 {[%emt 0:00:00]} 55. Ke4 {[%emt 0:00:33]} Kc6 {[%emt 0:00:00]} 56. Kf5 {[%emt 0:00:00]} Kc5 {[%emt 0:00:00]} 57. Kxg5 {[%emt 0:00:03]} Kb4 {[%emt 0:00:00]} 58. f4 {[%emt 0:00:02]} Kxb3 {[%emt 0:00:00]} 59. f5 {[%emt 0:00:01]} a4 {[%emt 0:00:00]} 60. f6 {[%emt 0:00:09]} a3 {[%emt 0:00:00]} 61. f7 {[%emt 0:00:12]} a2 {[%emt 0:00:00]} 62. f8=Q {[%emt 0:00:10]} a1=Q 63. Qf3+ Kc2 {[%emt 0:02:30]} 64. Qe4+ {[%emt 0:01:01]} Kb3 {[%emt 0:00:41]} 65. Kxh4 {[%emt 0:00:20]} 1-0

[Event "22nd Ruzomberok Open 2019"]
[Site "Ruzomberok"]
[Date "2019.07.01"]
[Round "3.26"]
[White "Cernekova, Martina"]
[Black "Pasztor, Ladislav"]
[Result "0-1"]
[ECO "E91"]
[WhiteElo "1659"]
[BlackElo "1857"]
[Annotator "NA"]
[PlyCount "62"]
[EventDate "2019.06.29"]
[EventType "swiss"]
[EventCountry "SVK"]
[SourceTitle "playchess.com"]
[Source "ChessBase"]
[SourceQuality "1"]
[TimeControl "40/5400+30:1800+30"]

1. d4 {[%emt 0:00:00]} Nf6 {[%emt 0:00:07]} 2. c4 {[%emt 0:00:00]} g6 {[%emt 0:00:12]} 3. Nc3 {[%emt 0:00:00]} Bg7 {[%emt 0:00:07]} 4. e4 {[%emt 0:00:00]} d6 {[%emt 0:00:12]} 5. Nf3 {[%emt 0:00:09]} O-O {[%emt 0:00:19]} 6. Be2 {[%emt 0:00:07]} c6 {[%emt 0:01:37]} 7. O-O {[%emt 0:00:19]} Qc7 {[%emt 0:00:47]} 8. Bg5 {[%emt 0:00:48]} h6 {[%emt 0:03:22]} 9. Bh4 {[%emt 0:00:36]} Nbd7 {[%emt 0:01:02]} 10. Ne1 {[%emt 0:00:59]} e5 {[%emt 0:02:45]} 11. d5 {[%emt 0:02:35]} g5 {[%emt 0:05:44]} 12. Bg3 {[%emt 0:00:19]} Nc5 {[%emt 0:04:22]} 13. f3 {[%emt 0:01:53]} b6 {[%emt 0:08:38]} 14. h4 {[%emt 0:02:32]} Bb7 {[%emt 0:05:13]} 15. Nc2 {[%emt 0:03:22]} Nh5 {[%emt 0:04:52]} 16. Bf2 {[%emt 0:01:37]} Nf4 {[%emt 0:01:13]} 17. Ne3 {[%emt 0:01:40]} Rad8 {[%emt 0:04:31]} 18. Nf5 {[%emt 0:00:59]} Bc8 {[%emt 0:02:26]} 19. Nxg7 {[%emt 0:02:18]} Kxg7 {[%emt 0:01:26]} 20. hxg5 {[%emt 0:01:41]} hxg5 {[%emt 0:00:11]} 21. Bg3 {[%emt 0:01:14]} Bb7 {[%emt 0:09:03]} 22. b4 {[%emt 0:03:34]} Nd7 {[%emt 0:00:22]} 23. Bxf4 {[%emt 0:01:01]} gxf4 {[%emt 0:00:18]} 24. a4 {[%emt 0:01:12]} Nf6 {[%emt 0:02:16]} 25. Qe1 {[%emt 0:01:16]} Rh8 {[%emt 0:00:59]} 26. g4 {[%emt 0:01:44]} Rh3 {[%emt 0:02:08]} 27. Kg2 {[%emt 0:04:24]} Rdh8 {[%emt 0:01:59]} 28. Rg1 {[%emt 0:00:49]} a5 {[%emt 0:05:14]} 29. b5 {[%emt 0:01:10]} cxb5 {[%emt 0:00:35]} 30. Nxb5 {[%emt 0:00:36]} Qc5 {[%emt 0:00:15]} 31. Kf1 {[%emt 0:05:10]} Qxg1+ {[%emt 0:01:21]} 0-1

[Event "22nd Ruzomberok Open 2019"]
[Site "Ruzomberok"]
[Date "2019.07.01"]
[Round "3.27"]
[White "Polko, Pavol"]
[Black "Salomons, Lorenzo"]
[Result "0-1"]
[ECO "A48"]
[WhiteElo "1638"]
[BlackElo "1842"]
[Annotator "NA"]
[PlyCount "121"]
[EventDate "2019.06.29"]
[EventType "swiss"]
[EventCountry "SVK"]
[SourceTitle "playchess.com"]
[Source "ChessBase"]
[SourceQuality "1"]
[TimeControl "40/5400+30:1800+30"]

1. d4 {[%emt 0:00:00]} Nf6 {[%emt 0:00:00]} 2. Nf3 {[%emt 0:00:00]} g6 {[%emt 0:00:01]} 3. Bf4 {[%emt 0:00:00]} Bg7 {[%emt 0:00:17]} 4. e3 {[%emt 0:00:08]} O-O {[%emt 0:00:22]} 5. Nbd2 {[%emt 0:00:15]} d6 {[%emt 0:00:18]} 6. Bc4 {[%emt 0:00:56]} Nc6 {[%emt 0:00:40]} 7. c3 {[%emt 0:00:16]} Bg4 {[%emt 0:00:29]} 8. Qb3 {[%emt 0:00:27]} Na5 {[%emt 0:00:16]} 9. Qb5 {[%emt 0:01:08]} Nxc4 {[%emt 0:00:16]} 10. Qxc4 {[%emt 0:00:28]} c6 {[%emt 0:00:27]} 11. h3 {[%emt 0:00:20]} Bxf3 {[%emt 0:17:55]} 12. gxf3 {[%emt 0:00:37]} a5 {[%emt 0:05:39]} 13. e4 {[%emt 0:00:45]} Nh5 {[%emt 0:01:03]} 14. Be3 {[%emt 0:00:21]} Qc7 {[%emt 0:04:11]} 15. d5 {[%emt 0:01:08]} a4 {[%emt 0:03:34]} 16. f4 {[%emt 0:01:51]} Ra6 {[%emt 0:03:14]} 17. Nf3 {[%emt 0:02:33]} b5 {[%emt 0:01:37]} 18. Qd3 {[%emt 0:00:30]} a3 {[%emt 0:02:28]} 19. b3 {[%emt 0:04:59]} cxd5 {[%emt 0:01:06]} 20. e5 {[%emt 0:01:47]} dxe5 {[%emt 0:02:09]} 21. fxe5 {[%emt 0:01:05]} Bxe5 {[%emt 0:00:48]} 22. Nxe5 {[%emt 0:00:28]} Qxe5 {[%emt 0:00:11]} 23. O-O-O {[%emt 0:00:26]} Nf4 {[%emt 0:02:32]} 24. Bxf4 {[%emt 0:00:26]} Qxf4+ {[%emt 0:00:11]} 25. Rd2 {[%emt 0:00:52]} Rc6 {[%emt 0:05:01]} 26. Re1 {[%emt 0:03:56]} e6 {[%emt 0:05:36]} 27. Kb1 {[%emt 0:01:51]} Rfc8 {[%emt 0:02:06]} 28. Rc2 {[%emt 0:01:31]} b4 {[%emt 0:02:58]} 29. Qe3 {[%emt 0:04:11]} Qf6 {[%emt 0:02:19]} 30. Rec1 {[%emt 0:01:01]} bxc3 {[%emt 0:03:46]} 31. Qa7 {[%emt 0:00:35]} d4 {[%emt 0:00:12]} 32. Qd7 {[%emt 0:01:20]} R8c7 {[%emt 0:01:46]} 33. Qe8+ {[%emt 0:00:35]} Kg7 {[%emt 0:00:10]} 34. Rd1 {[%emt 0:01:46]} Qh4 {[%emt 0:02:35]} 35. Qa8 {[%emt 0:00:31]} Qxh3 {[%emt 0:04:29]} 36. Qd8 {[%emt 0:01:51]} e5 {[%emt 0:02:29]} 37. Qd5 {[%emt 0:00:28]} Rc5 {[%emt 0:08:34]} 38. Qd8 {[%emt 0:02:17]} Qf3 {[%emt 0:02:28]} 39. Rxd4 {[%emt 0:04:00]} exd4 {[%emt 0:00:42]} 40. Qxd4+ {[%emt 0:00:17]} Qf6 {[%emt 0:01:21]} 41. Qb4 {[%emt 0:31:09]} Qe5 {[%emt 0:34:16]} 42. Qxa3 {[%emt 0:01:13]} h5 {[%emt 0:02:28]} 43. Qc1 {[%emt 0:00:29]} Qd4 {[%emt 0:01:31]} 44. f4 {[%emt 0:00:41]} Rf5 {[%emt 0:00:58]} 45. a4 {[%emt 0:04:19]} Rxf4 {[%emt 0:00:34]} 46. Ka2 {[%emt 0:01:23]} h4 {[%emt 0:02:51]} 47. Qe1 {[%emt 0:01:47]} Qe4 {[%emt 0:00:00]} 48. Qc1 {[%emt 0:00:00]} Qd4 {[%emt 0:00:00]} 49. Qe1 {[%emt 0:00:00]} Re4 {[%emt 0:00:00]} 50. Qa1 {[%emt 0:00:00]} Qd3 {[%emt 0:00:00]} 51. Qc1 {[%emt 0:00:00]} Re2 {[%emt 0:00:00]} 52. Rxe2 {[%emt 0:00:00]} Qxe2+ {[%emt 0:00:00]} 53. Ka3 {[%emt 0:00:00]} Qb2+ {[%emt 0:00:00]} 54. Qxb2 {[%emt 0:00:00]} cxb2 {[%emt 0:00:00]} 55. Kxb2 {[%emt 0:00:00]} h3 {[%emt 0:00:00]} 56. a5 {[%emt 0:00:00]} h2 {[%emt 0:00:00]} 57. b4 {[%emt 0:00:00]} h1=Q {[%emt 0:00:00]} 58. Kb3 {[%emt 0:00:00]} Qc6 {[%emt 0:00:00]} 59. Ka3 {[%emt 0:00:00]} Qb5 {[%emt 0:00:00]} 60. Kb3 {[%emt 0:00:00]} Rb7 {[%emt 0:00:00]} 61. a6 {[%emt 0:00:00]} 0-1

[Event "22nd Ruzomberok Open 2019"]
[Site "Ruzomberok"]
[Date "2019.07.01"]
[Round "3.28"]
[White "Tomanek, Rafael"]
[Black "Galbavy, Dusan"]
[Result "0-1"]
[ECO "A40"]
[WhiteElo "1880"]
[BlackElo "1678"]
[Annotator "NA"]
[PlyCount "62"]
[EventDate "2019.06.29"]
[EventType "swiss"]
[EventCountry "SVK"]
[SourceTitle "playchess.com"]
[Source "ChessBase"]
[SourceQuality "1"]
[TimeControl "40/5400+30:1800+30"]

1. d4 {[%emt 0:00:00]} e6 {[%emt 0:00:18]} 2. Nf3 {[%emt 0:00:00]} f5 {[%emt 0:00:22]} 3. c4 {[%emt 0:00:00]} d6 {[%emt 0:00:21]} 4. Nc3 {[%emt 0:00:06]} Nf6 {[%emt 0:00:11]} 5. g3 {[%emt 0:00:48]} g6 {[%emt 0:00:19]} 6. Bg2 {[%emt 0:01:14]} Bg7 {[%emt 0:00:09]} 7. O-O {[%emt 0:01:23]} O-O {[%emt 0:00:04]} 8. Qc2 {[%emt 0:06:22]} c6 {[%emt 0:01:14]} 9. b3 {[%emt 0:11:07]} Na6 {[%emt 0:01:23]} 10. Bb2 {[%emt 0:02:29]} Qe7 {[%emt 0:01:14]} 11. Ba3 {[%emt 0:05:22]} c5 {[%emt 0:04:40]} 12. Rad1 {[%emt 0:01:22]} e5 {[%emt 0:05:19]} 13. d5 {[%emt 0:10:09]} e4 {[%emt 0:01:30]} 14. Ne1 {[%emt 0:03:17]} Ng4 {[%emt 0:01:16]} 15. e3 {[%emt 0:04:17]} h5 {[%emt 0:03:37]} 16. h3 {[%emt 0:05:40]} Ne5 {[%emt 0:01:30]} 17. Kh2 {[%emt 0:07:32]} h4 {[%emt 0:06:24]} 18. Ne2 {[%emt 0:05:36]} Bf6 {[%emt 0:05:09]} 19. f4 {[%emt 0:05:00]} exf3 {[%emt 0:02:22]} 20. Nxf3 {[%emt 0:00:10]} hxg3+ {[%emt 0:01:47]} 21. Nxg3 {[%emt 0:01:07]} Qg7 {[%emt 0:07:12]} 22. e4 {[%emt 0:03:28]} f4 {[%emt 0:03:14]} 23. Ne2 {[%emt 0:00:51]} g5 {[%emt 0:00:31]} 24. Nxe5 {[%emt 0:05:19]} Bxe5 {[%emt 0:00:38]} 25. Kh1 {[%emt 0:04:44]} g4 {[%emt 0:03:03]} 26. Qc1 {[%emt 0:02:41]} Qf6 {[%emt 0:10:26]} 27. hxg4 {[%emt 0:04:27]} Bxg4 {[%emt 0:01:36]} 28. Bf3 {[%emt 0:00:43]} Qh4+ {[%emt 0:02:42]} 29. Kg1 {[%emt 0:02:11]} Rf6 {[%emt 0:03:05]} 30. Rf2 {[%emt 0:03:25]} Rg6 {[%emt 0:07:17]} 31. Nxf4 {[%emt 0:03:13]} Bxf4 {[%emt 0:00:53]} 0-1

[Event "22nd Ruzomberok Open 2019"]
[Site "Ruzomberok"]
[Date "2019.07.01"]
[Round "3.29"]
[White "Ucekajova, Veronika"]
[Black "Horbal, Jozef"]
[Result "1/2-1/2"]
[ECO "C00"]
[WhiteElo "1836"]
[BlackElo "1660"]
[Annotator "NA"]
[PlyCount "126"]
[EventDate "2019.06.29"]
[EventType "swiss"]
[EventCountry "SVK"]
[SourceTitle "playchess.com"]
[Source "ChessBase"]
[SourceQuality "1"]
[TimeControl "40/5400+30:1800+30"]

1. e4 {[%emt 0:00:00]} e6 {[%emt 0:00:38]} 2. d3 {[%emt 0:00:00]} b6 {[%emt 0:01:45]} 3. g3 {[%emt 0:03:05]} Bb7 {[%emt 0:00:15]} 4. Bg2 {[%emt 0:00:16]} Nc6 {[%emt 0:01:04]} 5. Nf3 {[%emt 0:01:18]} Qe7 {[%emt 0:06:05]} 6. O-O {[%emt 0:01:51]} O-O-O {[%emt 0:00:38]} 7. a4 {[%emt 0:07:47]} f6 {[%emt 0:03:40]} 8. Bd2 {[%emt 0:05:18]} Qf7 {[%emt 0:02:36]} 9. a5 {[%emt 0:01:32]} Bb4 {[%emt 0:01:59]} 10. axb6 {[%emt 0:00:59]} axb6 {[%emt 0:00:36]} 11. Bxb4 {[%emt 0:17:44]} Nxb4 {[%emt 0:00:31]} 12. c3 {[%emt 0:04:40]} Nc6 {[%emt 0:00:42]} 13. Qa4 {[%emt 0:00:36]} Nge7 {[%emt 0:02:35]} 14. e5 {[%emt 0:04:52]} d5 {[%emt 0:09:07]} 15. exd6 {[%emt 0:01:59]} Rxd6 {[%emt 0:00:30]} 16. d4 {[%emt 0:07:48]} Kd7 {[%emt 0:03:10]} 17. Na3 {[%emt 0:07:29]} Ra8 {[%emt 0:01:30]} 18. Qb3 {[%emt 0:00:20]} Na5 {[%emt 0:07:00]} 19. Qc2 {[%emt 0:02:04]} Qh5 {[%emt 0:10:54]} 20. b4 {[%emt 0:07:37]} Nac6 {[%emt 0:02:38]} 21. Nc4 {[%emt 0:01:29]} Rxa1 {[%emt 0:04:26]} 22. Rxa1 {[%emt 0:00:46]} Rd5 {[%emt 0:06:03]} 23. Ne3 {[%emt 0:02:10]} Rd6 {[%emt 0:01:26]} 24. Nc4 {[%emt 0:05:39]} Rd5 {[%emt 0:00:35]} 25. Qe2 {[%emt 0:01:12]} Qh6 {[%emt 0:07:26]} 26. Ne3 {[%emt 0:00:57]} Rd6 {[%emt 0:04:07]} 27. Nc4 {[%emt 0:03:35]} Rd5 {[%emt 0:00:31]} 28. Re1 {[%emt 0:00:10]} Nd8 {[%emt 0:02:13]} 29. Nh4 {[%emt 0:01:14]} g5 {[%emt 0:03:39]} 30. Bxd5 {[%emt 0:01:28]} Bxd5 {[%emt 0:00:59]} 31. Ng2 {[%emt 0:00:33]} Qh3 {[%emt 0:01:46]} 32. Nce3 {[%emt 0:00:14]} Bb7 {[%emt 0:00:57]} 33. Qg4 {[%emt 0:00:45]} Bxg2 {[%emt 0:01:01]} 34. Qxh3 {[%emt 0:01:45]} Bxh3 {[%emt 0:00:17]} 35. g4 {[%emt 0:00:20]} h5 {[%emt 0:01:26]} 36. f3 {[%emt 0:00:34]} hxg4 {[%emt 0:00:14]} 37. fxg4 {[%emt 0:00:32]} f5 {[%emt 0:00:43]} 38. gxf5 {[%emt 0:00:26]} Nxf5 {[%emt 0:00:22]} 39. Nc4 {[%emt 0:01:36]} Nd6 {[%emt 0:01:35]} 40. Ne5+ {[%emt 0:00:19]} Ke7 {[%emt 0:01:30]} 41. Re3 {[%emt 0:32:28]} Bf5 {[%emt 0:32:12]} 42. Rg3 {[%emt 0:01:24]} N6f7 {[%emt 0:00:43]} 43. Ng4 {[%emt 0:01:08]} Bxg4 {[%emt 0:01:12]} 44. Rxg4 {[%emt 0:00:01]} b5 {[%emt 0:01:02]} 45. h4 {[%emt 0:00:39]} gxh4 {[%emt 0:00:19]} 46. Rxh4 {[%emt 0:00:01]} c6 {[%emt 0:00:26]} 47. Kf2 {[%emt 0:00:48]} Kd6 {[%emt 0:00:17]} 48. Ke3 {[%emt 0:00:36]} Kd5 {[%emt 0:00:23]} 49. Kd3 {[%emt 0:00:38]} e5 {[%emt 0:01:07]} 50. dxe5 {[%emt 0:02:10]} Nxe5+ {[%emt 0:00:16]} 51. Kc2 {[%emt 0:01:38]} Ndf7 {[%emt 0:01:16]} 52. Rd4+ {[%emt 0:00:22]} Ke6 {[%emt 0:00:33]} 53. Kb3 {[%emt 0:00:28]} Nd6 {[%emt 0:00:24]} 54. Rh4 {[%emt 0:00:41]} Ndc4 {[%emt 0:00:38]} 55. Rd4 {[%emt 0:00:40]} Kf5 {[%emt 0:01:38]} 56. Rh4 {[%emt 0:00:00]} Ng4 {[%emt 0:00:00]} 57. Rh8 {[%emt 0:00:00]} Ke4 {[%emt 0:00:00]} 58. Rh4 {[%emt 0:00:00]} Nce5 {[%emt 0:00:00]} 59. Rh8 {[%emt 0:00:00]} Ne3 {[%emt 0:00:00]} 60. Rd8 {[%emt 0:00:00]} Nd5 {[%emt 0:00:00]} 61. Rd6 {[%emt 0:00:00]} Kd3 {[%emt 0:00:00]} 62. Rh6 {[%emt 0:00:00]} Ne3 {[%emt 0:00:00]} 63. Rd6+ {[%emt 0:00:00]} Nd5 {[%emt 0:00:00]} 1/2-1/2

[Event "22nd Ruzomberok Open 2019"]
[Site "Ruzomberok"]
[Date "2019.07.01"]
[Round "3.30"]
[White "Slivka, Vasil"]
[Black "Mocary, Metod"]
[Result "1-0"]
[ECO "A16"]
[WhiteElo "1562"]
[BlackElo "1830"]
[Annotator "NA"]
[PlyCount "87"]
[EventDate "2019.06.29"]
[EventType "swiss"]
[EventCountry "SVK"]
[SourceTitle "playchess.com"]
[Source "ChessBase"]
[SourceQuality "1"]
[TimeControl "40/5400+30:1800+30"]

1. c4 {[%emt 0:00:00]} Nf6 {[%emt 0:00:00]} 2. Nc3 {[%emt 0:00:00]} d5 {[%emt 0:00:00]} 3. cxd5 {[%emt 0:00:17]} Nxd5 {[%emt 0:00:07]} 4. g3 {[%emt 0:00:45]} g6 {[%emt 0:01:46]} 5. Bg2 {[%emt 0:00:10]} Nb6 {[%emt 0:00:58]} 6. Nf3 {[%emt 0:00:49]} Bg7 {[%emt 0:00:08]} 7. O-O {[%emt 0:00:18]} O-O {[%emt 0:00:11]} 8. d3 {[%emt 0:01:08]} c6 {[%emt 0:13:00]} 9. Be3 {[%emt 0:02:26]} N8d7 {[%emt 0:01:19]} 10. Rc1 {[%emt 0:02:06]} Nf6 {[%emt 0:02:37]} 11. h3 {[%emt 0:02:26]} Nfd5 {[%emt 0:07:05]} 12. Bd2 {[%emt 0:03:59]} h6 {[%emt 0:02:32]} 13. Nxd5 {[%emt 0:01:29]} Nxd5 {[%emt 0:00:11]} 14. Rb1 {[%emt 0:01:40]} Kh7 {[%emt 0:00:56]} 15. d4 {[%emt 0:01:07]} Bf5 {[%emt 0:06:31]} 16. Rc1 {[%emt 0:00:55]} Be4 {[%emt 0:05:20]} 17. e3 {[%emt 0:02:59]} Qb6 {[%emt 0:11:19]} 18. Bc3 {[%emt 0:03:09]} Nxc3 {[%emt 0:05:53]} 19. bxc3 {[%emt 0:02:05]} Rad8 {[%emt 0:07:17]} 20. Qb3 {[%emt 0:00:54]} Qc7 {[%emt 0:05:11]} 21. Ne1 {[%emt 0:00:42]} Bxg2 {[%emt 0:03:50]} 22. Kxg2 {[%emt 0:03:04]} b6 {[%emt 0:01:47]} 23. Nf3 {[%emt 0:00:46]} e6 {[%emt 0:04:11]} 24. Kg1 {[%emt 0:02:28]} Rd5 {[%emt 0:00:26]} 25. a4 {[%emt 0:00:41]} Rfd8 {[%emt 0:06:11]} 26. c4 {[%emt 0:01:23]} Ra5 {[%emt 0:01:12]} 27. Rfd1 {[%emt 0:01:46]} Qd7 {[%emt 0:01:10]} 28. Kh2 {[%emt 0:01:23]} Rf5 {[%emt 0:04:32]} 29. Kg2 {[%emt 0:01:16]} Ra5 {[%emt 0:00:32]} 30. g4 {[%emt 0:00:25]} f5 {[%emt 0:00:48]} 31. g5 {[%emt 0:03:49]} Rh8 {[%emt 0:02:25]} 32. h4 {[%emt 0:01:17]} Kg8 {[%emt 0:00:33]} 33. Ne5 {[%emt 0:01:24]} Bxe5 {[%emt 0:01:09]} 34. dxe5 {[%emt 0:00:26]} Qc7 {[%emt 0:00:37]} 35. f4 {[%emt 0:00:20]} hxg5 {[%emt 0:00:12]} 36. hxg5 {[%emt 0:00:30]} c5 {[%emt 0:01:29]} 37. e4 {[%emt 0:12:37]} Rh4 {[%emt 0:01:35]} 38. Qe3 {[%emt 0:05:12]} Rxa4 {[%emt 0:00:43]} 39. Rc2 {[%emt 0:03:50]} Rg4+ {[%emt 0:02:45]} 40. Kf3 {[%emt 0:01:26]} Kf7 {[%emt 0:00:52]} 41. Rh2 {[%emt 0:30:53]} Kg8 {[%emt 0:00:21]} 42. Rdh1 {[%emt 0:00:00]} Qg7 {[%emt 0:02:16]} 43. Qd2 {[%emt 0:00:00]} Ra3+ {[%emt 0:01:32]} 44. Ke2 {[%emt 0:00:00]} 1-0